Cogmind - Beta 10.2 @@@ ROGUE MODE // 2021.06.05 @ 07:43:10 Player: strategineer Result: Destroyed by D-53 Grenadier with Mini Grenade Launcher Performance ------------- Evolutions (0) 0 Regions Visited (2) 400 Robots Destroyed (11) 55 Value Destroyed (282) 282 Prototype IDs (0) 0 Alien Tech Used (0) 0 Bonus (39) 39 TOTAL SCORE: 776 Bonus ------- Follower Combat Kills 39 Cogmind --------- Core Integrity 0/250 Matter 280/300 Energy 89/100 System Corruption 0% Temperature Cool (0) Movement Treading (160) Location -10/Mines Parts ------- > --- POWER (1) -------- (None) > --- PROPULSION (2) --- Light Treads Light Treads > --- UTILITY (2) ------ (None) > --- WEAPON (2) ------- (None) > --- INVENTORY (4) ---- Light Treads Light Treads Light Treads Peak State ------------ > --- POWER ------------ Ion Engine > --- PROPULSION ------- Aluminum Leg Aluminum Leg > --- UTILITY ---------- Improved Heat Sink Small Storage Unit > --- WEAPON ----------- Assault Rifle Light Assault Rifle > --- INVENTORY -------- Ion Engine Light Treads Light Treads Light Treads Heat Sink [Rating: 9] Favorites ----------- Power Ion Engine Engine Ion Engine Propulsion Light Treads Treads Light Treads Leg Aluminum Leg Utility Small Storage Unit Device Improved Heat Sink Storage Small Storage Unit Weapon Small Laser Energy Gun Small Laser Ballistic Gun Assault Rifle Build | -11 -10 -10 ------- Run | Scr Mat Min Slots Evolved . | . . . Power . | . . . Propulsion . | . . . Utility . | . . . Weapon . | . . . Parts Attached 11 | . 8 3 Power 1 | . 1 . Engine 1 | . 1 . Core . | . . . Reactor . | . . . Propulsion 4 | . 2 2 Treads 4 | . 2 2 Leg . | . . . Wheel . | . . . Hover . | . . . Flight . | . . . Utility 2 | . 2 . Device 2 | . 2 . Storage . | . . . Processor . | . . . Hackware . | . . . Protection . | . . . Artifact . | . . . Weapon 4 | . 3 1 Energy Gun 2 | . 1 1 Energy Cannon . | . . . Ballistic Gun 2 | . 2 . Ballistic Cannon . | . . . Launcher . | . . . Special Weapon . | . . . Impact Weapon . | . . . Slashing Weapon . | . . . Piercing Weapon . | . . . Special Melee Weapon . | . . . Unidentified Prototypes . | . . . Parts Lost 12 | . 4 8 Power 2 | . 1 1 Propulsion 3 | . 1 2 Utility 2 | . . 2 Weapon 5 | . 2 3 Highest Loss Streak 6 | . 3 6 Average Slot Usage (%) 86 | . 97 77 Engine 13 | . 14 12 Treads 18 | . 8 26 Leg 8 | . 19 . Device 11 | . 12 11 Storage 13 | . 14 13 Energy Gun 8 | . 3 12 Ballistic Gun 10 | . 23 . Naked Turns . | . . . Heaviest Build 14 | 12 14 11 Greatest Support 40 | 20 40 40 Greatest Overweight (x) 1 | . . 1 Average Overweight (x) . | . . . Largest Inventory Capacity 6 | 6 6 6 Average Capacity 5 | 6 6 5 Most Carried 6 | 6 6 6 Average Carried 5 | 6 5 5 Final Capacity 6 | 6 6 4 Final Carried 6 | 6 6 3 Class Distribution -------------------- 100% | Mutant Dominant Class ---------------- Mutant | -10/Materials Mutant | -10/Mines Resources | -11 -10 -10 ----------- Run | Scr Mat Min Matter Collected 449 | 200 240 9 Remotely . | . . . Salvage Created 389 | . 295 94 Parts 24 | . 19 5 Haulers Intercepted . | . . . Recyclers Shooed 2 | . 1 1 Parts Field Recycled . | . . . Retrieved Matter . | . . . Parts Self-Destructed . | . . . Prevented . | . . . Kills | -11 -10 -10 ------- Run | Scr Mat Min Combat Hostiles Destroyed 9 | . 7 2 Guns 9 | . 7 2 Classes Destroyed 4 | . 4 . Recycler 1 | . 1 . Watcher 1 | . 1 . Swarmer 3 | . 3 . Grunt 6 | . 4 2 Best Kill Streak 2 | . 2 2 Combat Bots Only 2 | . 2 2 Max Kills in Single Turn 2 | . 2 1 Gunslinging 1 | . 1 . Exploded . | . . . Melee . | . . . Uniques/NPCs Destroyed . | . . . Combat | -11 -10 -10 -------- Run | Scr Mat Min Damage Taken 1509 | . 663 846 Core 251 | . 105 146 Absorbed by Shields . | . . . Core Remaining (%) 100 | 100 . . Volleys Fired 50 | . 38 12 Largest 2 | . 2 2 Hottest 60 | . 60 60 Shots Fired 93 | . 74 19 Gun 93 | . 74 19 Cannon . | . . . Launcher . | . . . Special . | . . . Kinetic 80 | . 72 8 Thermal 13 | . 2 11 Explosive . | . . . Electromagnetic . | . . . Robot Hit Streak 5 | . 5 5 Robot Miss Streak 4 | . 4 2 Penetration Max . | . . . Secondary Targets 2 | . 1 1 Max Gunslinging Chain 1 | . 1 1 Shots Hit Robots 56 | . 43 13 Core Hits 24 | . 18 6 Critical Hits . | . . . Critical Kills . | . . . Critical Parts Destroyed . | . . . Melee Attacks . | . . . Impact . | . . . Slashing . | . . . Piercing . | . . . Sneak Attacks . | . . . Combat Hostiles . | . . . Follow-up Attacks . | . . . Damage Inflicted 593 | . 492 101 Guns 589 | . 492 97 Cannons . | . . . Explosions . | . . . Melee . | . . . Ramming 4 | . . 4 Kinetic 522 | . 482 40 Thermal 67 | . 10 57 Explosive . | . . . Electromagnetic . | . . . Impact . | . . . Slashing . | . . . Piercing . | . . . Highest Corruption . | . . . Average Corruption . | . . . Corruption Purged . | . . . Overload Shots . | . . . Overflow Damage . | . . . Projectiles . | . . . Explosions . | . . . Melee . | . . . Knockbacks . | . . . Impact . | . . . Kinetic . | . . . Secondary . | . . . Self-Inflicted Damage . | . . . Shots . | . . . Rammed 1 | . . 1 Targets Rammed 1 | . . 1 Kicked . | . . . Crushed . | . . . Highest Temperature 5 | . . 5 Average Temperature 3 | . . 3 Received Heat Transfer 321 | . 261 60 Siege Activations . | . . . Robots Corrupted . | . . . Combat Hostiles . | . . . Parts Fried . | . . . Impact Corruptions . | . . . Robots Melted . | . . . Combat Hostiles . | . . . Parts Melted . | . . . Heat Transferred 150 | . 25 125 Parts Sabotaged . | . . . Parts Stolen . | . . . Parts Stripped . | . . . Power Chain Reactions . | . . . Missiles Intercepted . | . . . Alert | -11 -10 -10 ------- Run | Scr Mat Min Peak Influence 147 | . 147 102 Initial 57 | . . 57 Average 77 | . 76 78 Maximum Alert Level . | . . . Low Security (%) 100 | 100 100 100 Level 1 . | . . . Level 2 . | . . . Level 3 . | . . . Level 4 . | . . . Level 5 . | . . . High Security . | . . . Max Security . | . . . Squads Dispatched . | . . . Investigation . | . . . Extermination . | . . . Reinforcement . | . . . Assault . | . . . Garrison . | . . . Intercept . | . . . Construction Impeded . | . . . Haulers Reinforced . | . . . Stealth | -11 -10 -10 --------- Run | Scr Mat Min Distress Signals 1 | . 1 . Communications Jammed . | . . . Distress Signals . | . . . Times Spotted 29 | . 9 20 Peak Tracking Total 19 | . 5 19 Tactical Retreats . | . . . Traps | -11 -10 -10 ------- Run | Scr Mat Min Traps Triggered . | . . . Indirectly . | . . . Trap Hack Attempts . | . . . Triggered . | . . . Disarmed . | . . . Reprogrammed . | . . . Reused . | . . . Traps Extracted . | . . . Installed . | . . . Triggered . | . . . Machines | -11 -10 -10 ---------- Run | Scr Mat Min Machines Disabled . | . . . Max in Single Turn . | . . . Machines Sabotaged . | . . . Garrisons Compromised . | . . . Overloaded Fab Kills . | . . . Fab Network Shutdowns . | . . . Hacking | -11 -10 -10 --------- Run | Scr Mat Min Machines Accessed 1 | . 1 . Terminals . | . . . Fabricators . | . . . Repair Stations . | . . . Recycling Units 1 | . 1 . Scanalyzers . | . . . Garrison Access . | . . . Total Hacks 2 | . 2 . Successful 2 | . 2 . Failed . | . . . Catastrophic . | . . . Database Lockouts . | . . . Manual . | . . . Terminals . | . . . Fabricators . | . . . Repair Stations . | . . . Recycling Units 2 | . 2 . Scanalyzers . | . . . Garrison Access . | . . . Terminal Hacks . | . . . Fabricator Hacks . | . . . Repair Station Hacks . | . . . Recycling Unit Hacks 2 | . 2 . Report Inventory 1 | . 1 . Retrieve Components 1 | . 1 . Scanalyzer . | . . . Garrison Access Hacks . | . . . Unauthorized Hacks . | . . . Terminals . | . . . Fabricators . | . . . Repair Stations . | . . . Recycling Units . | . . . Scanalyzers . | . . . Garrison Access . | . . . Data Cores Recovered . | . . . Used . | . . . Hacking Detections . | . . . Full Trace Events . | . . . Feedback Events . | . . . Feedback Blocked . | . . . Robot Schematics Acquired . | . . . Robots Built . | . . . Matter . | . . . Time . | . . . Total Robot Build Rating . | . . . Part Schematics Acquired . | . . . Parts Built . | . . . Matter . | . . . Time . | . . . Total Part Build Rating . | . . . Parts Repaired . | . . . Time . | . . . Parts Recycled . | . . . Recycled Matter . | . . . Retrieved Matter . | . . . Retrieved Components 1 | . 1 . Parts Scanalyzed . | . . . Part Schematics Acquired . | . . . Parts Damaged . | . . . Bothacking | -11 -10 -10 ------------ Run | Scr Mat Min Used RIF Installer . | . . . Robots Hacked . | . . . Non-combat . | . . . Combat . | . . . Robot Hacks Applied . | . . . Relay Couplers Released . | . . . Robots Rewired . | . . . Allies Hacked . | . . . Hacks Repelled . | . . . Allies | -11 -10 -10 -------- Run | Scr Mat Min Total Allies 5 | . . 5 Largest Group 5 | . . 5 Highest-Rated Group 83 | . . 83 Highest-Rated Ally 31 | . . 31 Total Orders . | . . . Ally Attacks 32 | . . 32 Total Damage 504 | . . 504 Kills 3 | . . 3 Allies Corrupted . | . . . Allies Melted . | . . . Intel | -11 -10 -10 ------- Run | Scr Mat Min Robot Analysis Total . | . . . Derelict Logs Recovered 1 | . . 1 Drone Launches . | . . . Drone Recoveries . | . . . Exploration | -11 -10 -10 ------------- Run | Scr Mat Min Turns Passed 673 | 4 294 375 Spaces Moved 346 | 4 122 220 Core 24 | . . 24 Treads 242 | . 46 196 Legs 80 | 4 76 . Wheels . | . . . Hover . | . . . Flight . | . . . Fastest Speed 100 | 120 120 100 Average Speed 146 | 120 135 153 Slowest Speed 160 | 120 160 160 Overloaded Moves . | . . . Propulsion Burnouts . | . . . Robots Hopped . | . . . Cave-ins Triggered . | . . . Exploration Rate (%) 32 | 2 22 72 Regions Visited 2 Branch Regions 1 Pre-discovered Areas 1 | . . 1 Known Exits Taken . | . . . Unknown Exits Taken 2 | 1 1 . Scrap Searched 1 | . . 1 Spaces Dug . | . . . Terrain Destroyed . | . . . Melee . | . . . Projectile . | . . . AOE . | . . . Terrain Rammed . | . . . Walls Destroyed . | . . . Machines Disabled . | . . . Actions | -11 -10 -10 --------- Run | Scr Mat Min Total 424 | 3 181 240 Wait 2 | . 2 . Move 344 | 3 121 220 Hop . | . . . Pick Up 10 | . 7 3 Fast Attach 2 | . 2 . Attach 6 | . 3 3 Detach . | . . . Swap 3 | . 3 . Drop 6 | . 5 1 Fire 50 | . 38 12 Melee . | . . . Ram . | . . . Kick . | . . . Crush 1 | . . 1 Escape Stasis . | . . . Rewire . | . . . Trap . | . . . Miscellaneous . | . . . Route ------- -11/Scrapyard -10/Materials (discovered 2 exits: [*Mat] / [*Min]) -10/Mines History --------- Turn | Location | Event 1 | -11/Scrapyard | Discovered new exit (range 3) 5 | -11/Scrapyard | Entered Materials 71 | -10/Materials | Discovered new exit (range 9) 235 | -10/Materials | Discovered new exit (range 14) 244 | -10/Materials | Lost 3 parts (1p1n1w) 299 | -10/Materials | Entered Mines 304 | -10/Mines | Build established: Mutant 448 | -10/Mines | Assisted by bots powering up and referring to "LRC-V3" 556 | -10/Mines | Learned location of Storage (-7) 603 | -10/Mines | Assembled infested the area 625 | -10/Mines | Core integrity fell below 50% 631 | -10/Mines | Core integrity fell below 20% 674 | -10/Mines | Destroyed by D-53 Grenadier with Mini Grenade Launcher Last Messages --------------- 00625_ U-05 Engineer lays Concrete. 00627_ U-05 Engineer builds a Wall. 00630_ T-07 Excavator destroyed. 00630_ U-05 Engineer builds a Wall. 00632_ The unstable cave ceiling collapses. 00632_ Sml. Laser destroyed. 00632_ Lgt. Treads destroyed. 00633_ D-53 Grenadier destroyed. 00634_ U-05 Engineer lays Concrete. 00635_ U-05 Engineer builds a Wall. 00637_ The unstable cave ceiling collapses. 00638_ Trooper 1a destroyed. 00639_ U-05 Engineer lays Concrete. 00640_ U-05 Engineer builds a Wall. 00641_ The unstable cave ceiling collapses. 00641_ Lgt. Treads destroyed. 00641_ Ion Engine destroyed. 00646_ The unstable cave ceiling collapses. 00665_ Sml. Storage Unit destroyed. 00670_ Acquired Lgt. Treads. Map ----- +----------------------------------------------------+ | ??????????# #??????????????????????????????????# | | ??????????# #??????????????????????????????????# | | ??????????# #?????????????????????????????????## | | ??????????# #????????????????????????######### # | | ??????????# #???????????????????????## ## #% | | ??????????# #??????????????????????## # | | ??????????# #??????????????????????# # | | ??????????# #??????????????????????# | | ??????????# #######????????????????# | | ??????????# #???????????# # | | ??????????# ###### #??????????## # | | ??????????# #?????????????????????## | | ??????????# #????????????????????## | | ??????????# #????????????????????# !% | | ?????????## ##???????????????????# ## ### | | ????????## ##??????????????????## #?? | | ???????## #??????????????????## #######?? | | ??????## #?????????????????## #???????? | | ?????## ##?????????????????# ##???????? | | ?????# ##??????????????????# ##????????? | | ?????# #????????######?????# #?????????? | | ?????## ##?????### # ##????# ####??????? | | ??????### ##???## ##???# ##?????? | | ???????### ##??# #??## #?????? | | ???????# ##?# #### #?????? | | ???????# ## #### @ d ##?????? | | ?????? ?## ## #??????? | | ?????## ???## ### #?????? | | ??????#?????# ###?### #????? | | ?##########?# u### ##?????## #????? | | ?# #?## ##?#######???????## #????? | | ?# """ ###### ##?????????????????## ##????? | | ?# """ ## #???????????????????? #?????? | | ?# """% ### ## #????????????????????# #?????? | | ?# =% = #?# ## #?????????????????????# #?????? | | ?# =! #?# ## #??????????????????????# #?????? | | ?# #?# ## #???????????????????????###?????? | | ?# #?# #???????????????????????????????? | | ?# #?#### #???????????????????????????????? | | ?##########????# #???????????????????????????????? | | ???????????????# ???????????????????????????????? | | ???????????????####??????????????????????????????? | | ?????????????????????????????????????????????????? | | ?????????????????????????????????????????????????? | | ?????????????????????????????????????????????????? | | ?????????????????????????????????????????????????? | | | | | | | | | +----------------------------------------------------+ Best States ------------- Heat Dissipation 39 Energy Generation 10 Energy Capacity 250 Matter Stores 300 Matter Capacity 300 Sight Range 16 Terrain Scan Density 10 Evasion (%) 40 Recoil Reduction 2 Item Schematics ----------------- None Robot Schematics ------------------ None Fabricated ------------ Nothing Alien Tech Used ----------------- None Achievements -------------- Slippery One Challenges ------------ None Game ------ Seed ThunderEnergyWings Manual? 0 Play Time 00:10:49 Cumulative 7.6 hours Start 2021.06.05 @ 07:32:45 End 2021.06.05 @ 07:43:10 Sessions 1 Manual Loads 0 Difficulty Rogue Special Mode None Game No. 10 Rogue 10 Adventurer 0 Explorer 0 Win Type - Total 0 Types 0/0/0/0/0/0/0/0/0 Lore% 2 Gallery% 17 Achievement% 13 Wizard Run 0 Options --------- ASCII 0 Keyboard 0 Movement Mouse Keybinds 1 Fullscreen 2 Font 24/Smallcaps Map View 76x50 Tactical HUD 1 Map Filters NONE Filters NONE Steam 1 RUN: 4e621bdc-2800-495c-8235-1a168b22b574